Cogmind - Beta 16.1 @@@ ROGUE MODE // 2026.03.27 @ 17:21:20 Player: konomiyu Result: Destroyed by as-90846 with Assembled Heavy Rifle Performance ------------- Evolutions (0) 0 Regions Visited (3) 600 Robots Destroyed (36) 180 Value Destroyed (652) 652 Prototype IDs (14) 280 Alien Tech Used (0) 0 Bonus (-33) -33 TOTAL SCORE: 1679 Bonus ------- Friendly Fire -33 Cogmind --------- Core Integrity 0/250 Matter 300/300 Energy 96/100 System Corruption 13% Temperature Cool (2) Movement Walking (180) Ox1 Location -10/Exiles Parts ------- > --- POWER (1) -------- (None) > --- PROPULSION (2) --- VSS Leg > --- UTILITY (2) ------ Large Storage Unit Seismic Detector > --- WEAPON (2) ------- (None) > --- INVENTORY (15) --- Ion Engine Light Treads Aluminum Leg Scrap Suit Large Storage Unit Improved Terrain Scanner Hardened Medium Armor Plating System Shield Tractor Beam High-powered Tractor Beam Assault Rifle Assault Rifle Assault Rifle Grenade Launcher Peak State ------------ > --- POWER ------------ Light Nuclear Core > --- PROPULSION ------- Aluminum Leg VSS Leg > --- UTILITY ---------- Large Storage Unit Seismic Detector > --- WEAPON ----------- Assault Rifle Improved Datajack > --- INVENTORY -------- Ion Engine Light Treads Aluminum Leg Scrap Suit Large Storage Unit Improved Terrain Scanner Hardened Medium Armor Plating System Shield Tractor Beam High-powered Tractor Beam Assault Rifle Assault Rifle Assault Rifle Grenade Launcher [Rating: 15] Favorites ----------- Power Light Nuclear Core Engine Ion Engine Power Core Light Nuclear Core Propulsion Light Treads Treads Light Treads Leg Aluminum Leg Utility Seismic Detector Device Seismic Detector Storage Large Storage Unit Weapon Assault Rifle Energy Gun Small Laser Ballistic Gun Assault Rifle Launcher Grenade Launcher Special Melee Weapon Improved Datajack Build | -11 -10 -10 -10 ------- Run | Yrd Mat Min Exi Slots Evolved . | . . . . Power . | . . . . Propulsion . | . . . . Utility . | . . . . Weapon . | . . . . Parts Attached 21 | 8 11 1 1 Power 3 | 1 2 . . Engine 2 | 1 1 . . Core 1 | . 1 . . Reactor . | . . . . Propulsion 6 | 3 2 1 . Treads 2 | 2 . . . Leg 4 | 1 2 1 . Wheel . | . . . . Hover . | . . . . Flight . | . . . . Utility 4 | 2 2 . . Device 2 | 1 1 . . Storage 2 | 1 1 . . Processor . | . . . . Hackware . | . . . . Protection . | . . . . Artifact . | . . . . Weapon 8 | 2 5 . 1 Energy Gun 1 | 1 . . . Energy Cannon . | . . . . Ballistic Gun 4 | 1 3 . . Ballistic Cannon . | . . . . Launcher 1 | . 1 . . Special Weapon . | . . . . Impact Weapon . | . . . . Slashing Weapon . | . . . . Piercing Weapon . | . . . . Special Melee Weapon 2 | . 1 . 1 Unidentified Prototypes . | . . . . Parts Lost 6 | . 2 . 4 Power 1 | . . . 1 Propulsion 2 | . 1 . 1 Utility 1 | . 1 . . Weapon 2 | . . . 2 Highest Loss Streak 4 | . 1 . 4 To Critical Strikes . | . . . . Average Backups 9 | 3 7 11 14 Power . | . 1 1 1 Propulsion 1 | . 1 2 2 Utility 3 | . 2 3 7 Weapon 3 | 1 3 3 3 Tool/Special . | . . . . Unused Backups 11 | . 1 1 9 Power 1 | . . . 1 Propulsion 1 | . . . 1 Utility 7 | . 1 . 6 Weapon 2 | . . 1 1 Tool/Special . | . . . . Average Slot Usage (%) 98 | . 98 100 99 Engine 4 | . 7 . . Core 9 | . 6 14 13 Treads 16 | . 25 . . Leg 11 | . 2 28 28 Device 13 | . 12 14 14 Storage 14 | . 14 14 14 Energy Gun 2 | . 4 . . Ballistic Gun 24 | . 23 28 21 Special Melee Weapon 1 | . . . 6 Peak Build Rating 15 | 7 10 14 15 Average Rating 9 | 5 8 10 14 On Entrance 7 | . 7 10 14 Avg Prop Armor Cover (%) 24 | 24 . . . Naked Turns . | . . . . Heaviest Build 30 | 13 30 30 30 Greatest Support 40 | 40 40 22 22 Greatest Overweight (x) 2 | . 2 1 1 Average Overweight (x) . | . . 1 1 Largest Inventory Capacity 15 | 8 15 15 15 Average Capacity 11 | 7 9 15 15 Most Carried 15 | 5 11 15 15 Average Carried 9 | 3 7 11 15 Final Capacity 15 | 8 15 15 15 Final Carried 15 | 5 11 15 15 Class Distribution -------------------- 100% | Mutant Dominant Class ---------------- Mutant | -10/Materials Mutant | -10/Mines Mutant | -10/Exiles Resources | -11 -10 -10 -10 ----------- Run | Yrd Mat Min Exi Matter Collected 864 | 286 459 87 32 Remotely . | . . . . Salvage Created 1177 | 133 921 96 27 Parts 73 | 12 51 10 . Haulers Intercepted 2 | . 2 . . Recyclers Shooed 3 | . 3 . . Parts Field Recycled . | . . . . Retrieved Matter . | . . . . Parts Self-Destructed . | . . . . Prevented . | . . . . Parts Restored . | . . . . Kills | -11 -10 -10 -10 ------- Run | Yrd Mat Min Exi Combat Hostiles Destroyed 21 | . 15 6 . Guns 21 | . 15 6 . Classes Destroyed 9 | 2 6 . 1 Worker 1 | . 1 . . Tunneler 4 | 3 1 . . Hauler 2 | . 2 . . Recycler 3 | 1 2 . . Operator 2 | . 2 . . Watcher 2 | . 2 . . Swarmer 9 | . 3 6 . Grunt 12 | . 12 . . Zionite 1 | . . . 1 Best Kill Streak 3 | 2 3 3 . Combat Bots Only 3 | . 3 3 . Max Kills in Single Turn 1 | 1 1 1 1 Gunslinging . | . . . . Exploded . | . . . . Melee . | . . . . Uniques/NPCs Destroyed . | . . . . Combat | -11 -10 -10 -10 -------- Run | Yrd Mat Min Exi Hostile Shots Fired 129 | . 63 29 37 Missed 30 | . 12 9 9 Hits 99 | . 51 20 28 Melee 1 | . . . 1 Projectile 98 | . 51 20 27 Critical Strikes 2 | . . 1 1 Damage Taken 1158 | . 592 168 398 Core 256 | . 82 63 111 Absorbed by Shields . | . . . . Core Remaining (%) 100 | 100 . . . Volleys Fired 93 | 6 75 12 . Largest 2 | 2 2 2 . Hottest 60 | 60 60 40 . Shots Fired 186 | 12 150 23 1 Gun 186 | 12 150 23 1 Cannon . | . . . . Launcher . | . . . . Special . | . . . . Kinetic 140 | 6 110 23 1 Thermal 46 | 6 40 . . Explosive . | . . . . Electromagnetic . | . . . . Robot Hit Streak 10 | 9 10 4 3 Robot Miss Streak 4 | . 4 3 . Penetration Max . | . . . . Secondary Targets . | . . . . Shots Hit Robots 124 | 9 99 11 5 Core Hits 58 | 5 46 6 1 Critical Kills . | . . . . Critical Parts Destroyed . | . . . . Critical Strikes . | . . . . Melee Attacks 9 | . 5 . 4 Impact . | . . . . Slashing . | . . . . Piercing . | . . . . Sneak Attacks 9 | . 5 . 4 Combat Hostiles . | . . . . Follow-up Attacks . | . . . . Damage Inflicted 1322 | 89 1079 141 13 Guns 1322 | 89 1079 141 13 Cannons . | . . . . Explosions . | . . . . Melee . | . . . . Ramming . | . . . . Kinetic 978 | 25 799 141 13 Thermal 344 | 64 280 . . Explosive . | . . . . Electromagnetic . | . . . . Impact . | . . . . Slashing . | . . . . Piercing . | . . . . Highest Corruption 13 | . 2 2 13 Average Corruption 1 | . 1 2 2 Corruption Purged . | . . . . Corruption Blocked . | . . . . Effects 37 | . 21 10 6 Message Errors 6 | . 2 3 1 Matter Fused 8 | . 5 2 1 Heat Flow Errors 3 | . 3 . . Energy Discharges 3 | . 2 . 1 Parts Fused 1 | . . . 1 Data Loss (minor) 7 | . 3 3 1 Data Loss (major) 3 | . 2 1 . Misfires 2 | . 1 . 1 Alerts 2 | . 2 . . Weapon Failures 2 | . 1 1 . Overload Shots . | . . . . Overflow Damage . | . . . . Projectiles . | . . . . Explosions . | . . . . Melee . | . . . . Knockbacks . | . . . . Impact . | . . . . Kinetic . | . . . . Secondary . | . . . . Self-Inflicted Damage . | . . . . Shots . | . . . . Rammed . | . . . . Targets Rammed . | . . . . Kicked . | . . . . Crushed . | . . . . Highest Temperature 260 | 20 260 . . Average Temperature 43 | 14 46 . . Received Heat Transfer 379 | . 279 . 100 Siege Activations . | . . . . Martial Activations . | . . . . Shielding Activations . | . . . . Robots Disrupted . | . . . . Combat Hostiles . | . . . . Robots Corrupted . | . . . . Combat Hostiles . | . . . . Parts Fried . | . . . . Impact Corruptions . | . . . . Robots Melted . | . . . . Combat Hostiles . | . . . . Parts Melted . | . . . . Heat Transferred 775 | 150 625 . . Parts Sabotaged . | . . . . Parts Stolen . | . . . . Parts Stripped . | . . . . Power Chain Reactions . | . . . . Alert | -11 -10 -10 -10 ------- Run | Yrd Mat Min Exi Maximum Alert Level . | . . . . Low Security (%) 100 | 100 100 100 . Level 1 . | . . . . Level 2 . | . . . . Level 3 . | . . . . Level 4 . | . . . . Level 5 . | . . . . High Security . | . . . . Max Security . | . . . . Peak Influence 107 | 10 69 107 . Initial 12 | . . 12 . Average 27 | 1 27 31 . Influence Increases 701 | 20 496 185 . Destroy 0b10 Robot/C 420 | . 300 120 . Destroy 0b10 Robot/NC 70 | 20 50 . . Destroy Leader 98 | . 78 20 . Successful Hack 22 | . 22 . . Destroy Structure 1 | . 1 . . Lose Combat Pursuer 90 | . 45 45 . Influence Decreases 701 | 20 464 217 . Entered New Map 20 | . . 20 . Time Decay 661 | 20 444 197 . Lost Part 20 | . 20 . . Squads Dispatched 3 | . 3 . . Investigation 1 | . 1 . . Extermination . | . . . . Reinforcement 2 | . 2 . . Assault . | . . . . Garrison . | . . . . Intercept . | . . . . Searches Triggered . | . . . . Construction Impeded . | . . . . Haulers Reinforced . | . . . . Active Scanning Responses . | . . . . Cargo Convoy Interrupts . | . . . . Stealth | -11 -10 -10 -10 --------- Run | Yrd Mat Min Exi Distress Signals 2 | . 2 . . Communications Jammed . | . . . . Distress Signals . | . . . . Times Spotted 46 | . 27 9 10 Peak Tracking Total 15 | . 4 3 15 Tactical Retreats 3 | . 2 1 . Traps | -11 -10 -10 -10 ------- Run | Yrd Mat Min Exi Traps Triggered 4 | . 4 . . Indirectly . | . . . . Trap Hack Attempts . | . . . . Triggered . | . . . . Disarmed . | . . . . Reprogrammed . | . . . . Reused . | . . . . Traps Extracted . | . . . . Installed . | . . . . Triggered . | . . . . Machines | -11 -10 -10 -10 ---------- Run | Yrd Mat Min Exi Machines Disabled . | . . . . Max in Single Turn . | . . . . Machines Repaired . | . . . . Machines Dismantled . | . . . . Machines Sabotaged . | . . . . Overloaded Fab Kills . | . . . . Hacking | -11 -10 -10 -10 --------- Run | Yrd Mat Min Exi Machines Accessed 6 | . 5 1 . Terminals 5 | . 5 . . Fabricators . | . . . . Repair Stations . | . . . . Recycling Units . | . . . . Scanalyzers . | . . . . Garrison Access . | . . . . Total Hacks 21 | . 20 1 . Successful 9 | . 8 1 . Failed 11 | . 11 . . Catastrophic . | . . . . Database Lockouts 1 | . 1 . . Manual 7 | . 7 . . Terminals 20 | . 20 . . Fabricators . | . . . . Repair Stations . | . . . . Recycling Units . | . . . . Scanalyzers . | . . . . Garrison Access . | . . . . Terminal Hacks 8 | . 7 1 . Robot Analysis 2 | . 2 . . Prototype ID Bank 1 | . 1 . . Open Door 1 | . . 1 . Locate Traps 1 | . 1 . . Maintenance Status 1 | . 1 . . Registered Components 1 | . 1 . . Zone Layout 1 | . 1 . . Fabricator Hacks . | . . . . Repair Station Hacks . | . . . . Recycling Unit Hacks . | . . . . Scanalyzer . | . . . . Garrison Access Hacks . | . . . . Unauthorized Hacks 1 | . 1 . . Terminals 1 | . 1 . . Operators 1 | . 1 . . Fabricators . | . . . . Repair Stations . | . . . . Recycling Units . | . . . . Scanalyzers . | . . . . Garrison Access . | . . . . Data Cores Recovered . | . . . . Used . | . . . . Hacking Detections 5 | . 5 . . Full Trace Events 4 | . 4 . . Feedback Events 1 | . 1 . . Corruption 1 | . 1 . . Feedback Blocked . | . . . . Robot Schematics Acquired . | . . . . Robots Built . | . . . . Authchips . | . . . . Time . | . . . . Total Robot Build Rating . | . . . . Part Schematics Acquired . | . . . . Parts Built . | . . . . Authchips . | . . . . Time . | . . . . Total Part Build Rating . | . . . . Part Studies Acquired . | . . . . Parts Repaired . | . . . . Time . | . . . . Parts Recycled . | . . . . Recycled Matter . | . . . . Retrieved Matter . | . . . . Retrieved Components . | . . . . Parts Scanalyzed . | . . . . Part Schematics Acquired . | . . . . Parts Damaged . | . . . . Bothacking | -11 -10 -10 -10 ------------ Run | Yrd Mat Min Exi Used RIF Installer . | . . . . Robots Hacked 6 | . 2 . 4 Non-combat 4 | . 2 . 2 Combat 2 | . . . 2 Robot Hacks Applied 8 | . 4 . 4 parse_system 6 | . 2 . 4 no_distress 2 | . 2 . . Relay Couplers Released . | . . . . Fabnet Peak Effective % . | . . . . Robots Rewired . | . . . . Allies Hacked . | . . . . Hacks Repelled . | . . . . Allies | -11 -10 -10 -10 -------- Run | Yrd Mat Min Exi Total Allies . | . . . . Largest Group . | . . . . Highest-Rated Group . | . . . . Highest-Rated Ally . | . . . . Total Orders . | . . . . Ally Attacks . | . . . . Total Damage . | . . . . Kills . | . . . . Allies Corrupted . | . . . . Allies Melted . | . . . . Intel | -11 -10 -10 -10 ------- Run | Yrd Mat Min Exi Active Infowar (turns) 2889 | 24 1750 587 528 Seismic 2889 | 24 1750 587 528 Robot Analysis Total 2 | . 2 . . Derelict Logs Recovered . | . . . . Drone Launches . | . . . . Drone Recoveries . | . . . . Exploration | -11 -10 -10 -10 ------------- Run | Yrd Mat Min Exi Turns Passed 3245 | 153 1977 587 528 Spaces Moved 1565 | 77 919 286 283 Core 3 | 3 . . . Treads 917 | 72 845 . . Legs 645 | 2 74 286 283 Wheels . | . . . . Hover . | . . . . Flight . | . . . . Fastest Speed 50 | 50 160 185 180 Average Speed 171 | 154 162 189 184 Slowest Speed 260 | 160 260 190 185 Overloaded Moves . | . . . . Propulsion Burnouts . | . . . . Robots Hopped . | . . . . Potential Cave-ins . | . . . . Cave-ins Triggered . | . . . . Exploration Rate (%) 50 | 6 97 50 49 Regions Visited 3 Branch Regions 2 Pre-discovered Areas 1 | . . 1 . Known Exits Taken . | . . . . Unknown Exits Taken 3 | 1 1 1 . Scrap Searched . | . . . . Spaces Dug . | . . . . Terrain Destroyed . | . . . . Melee . | . . . . Projectile . | . . . . AOE . | . . . . Terrain Rammed . | . . . . Walls Destroyed . | . . . . Machines Disabled . | . . . . Actions | -11 -10 -10 -10 --------- Run | Yrd Mat Min Exi Total 1947 | 97 1253 309 288 Wait 228 | . 225 3 . Move 1562 | 76 918 285 283 Hop . | . . . . Pick Up 20 | 7 8 5 . Fast Attach 10 | 5 5 . . Attach 4 | 2 2 . . Detach . | . . . . Swap 14 | 1 11 1 1 Drop 7 | . 4 3 . Fire 93 | 6 75 12 . Melee 9 | . 5 . 4 Ram . | . . . . Kick . | . . . . Crush . | . . . . Escape Stasis . | . . . . Rewire . | . . . . Trap . | . . . . Miscellaneous . | . . . . Route ------- -11/Scrapyard -10/Materials (discovered 5 exits: [*Mat x3] / *Min x2) -10/Mines (discovered 2 exits: [*Mat] / [*Exi]) -10/Exiles (discovered 1 exit: [*Min]) History --------- Turn | Location | Event 9 | -11/Scrapyard | Discovered new exit (range 15) 154 | -11/Scrapyard | Entered Materials 154 | -10/Materials | Discovered new exit (range 8) 218 | -10/Materials | Discovered new exit (range 16) 311 | -10/Materials | Central database locked down 331 | -10/Materials | Build established: Mutant 948 | -10/Materials | Discovered new exit (range 16) 1493 | -10/Materials | Discovered new exit (range 16) 1574 | -10/Materials | Discovered new exit (range 16) 2131 | -10/Materials | Entered Mines 2164 | -10/Mines | Core integrity fell below 50% 2253 | -10/Mines | Learned location of Storage (-7) 2423 | -10/Mines | Discovered new exit (range 8) 2573 | -10/Mines | Found a Scrap Suit stashed away for nefarious purposes 2577 | -10/Mines | Found Scrap Suit 2651 | -10/Mines | Met a Derelict who couldn't figure out how to use a Trap Extractor 2708 | -10/Mines | Deemed a non-threat by the Exiles lab entrance 2710 | -10/Mines | Discovered new exit (range 5) 2718 | -10/Mines | Entered Exiles 2755 | -10/Exiles | Discovered new exit (range 14) 2781 | -10/Exiles | Met 8R-AWN 2807 | -10/Exiles | Met EX-HEX 3120 | -10/Exiles | Met EX-DEC 3196 | -10/Exiles | Visited The Gauntlet 3216 | -10/Exiles | Attacked by the Exiles 3237 | -10/Exiles | Core integrity fell below 20% 3245 | -10/Exiles | System corruption reached 10% 3246 | -10/Exiles | Destroyed by as-90846 with Assembled Heavy Rifle Last Messages --------------- honest! 03210_ Sneak attack on DK-RAY. 03210_ Jacked DK-RAY... >>parse_system Reading system data... 03215_ System corrupted: FCS attempts to trigger Assault Rifle. 03215_ System corrupted: Assault Rifle misfires. [Achievement: My Bad] 03215_ J5-HVA destroyed. 03216_ EXILES: Hostile robot within lab perimeter. Defensive protocols time, folks! 03216_ Acquired 13 matter. 03231_ Lgt. Nuclear Core destroyed. 03232_ Imp. Datajack destroyed. 03239_ EX-BIN: "I just want to science!" 03244_ Aluminum Leg destroyed. 03244_ System corrupted by crushing effect (+5). 03245_ Assault Rifle destroyed. [Achievement: Deductive Reasoning] Map ----- +----------------------------------------------------+ | ?????????????? ????? | | ??????????????#" ?????? | | ??????????????#""" ???????? | | ?????????????##" ??????????? | | ?????????????#"" ""???????????""" | | ????????????##""" """????????????#""" | | ????????????#""" """#????????????#"""" | | ????????????#""" ""#???????????##"" | | ????????????#"" ########??####"""" | | ????????????#""" ## ####""" | | ????????????#"" """" | | ????????????##"" | | ?????????????#"""" | | ?????????????## | | ??????????????#" " "" | | ??????????????#"""" ""## ##""" " " | | ??????????????#"" ""#### ######""" | | ??????????????#" """"##??# #????###"" | | ??????????????#""" z """#??## ####???### | | ??????????????## ""##??#! "!#?????? | | ???????????????#"" """##???#" !#?????? | | ???????????????##""" a ##????#" "#?????? | | ????????????????##"""" a##?????#!!""!"#?????? | | ?????????????????### a #??????########?????? | | ???????????????????##### a ##???????????????????? | | ???????????????????????##@ a#????????????????????? | | ????????????????????????# za#????????????????????? | | ????????????????????????#za #????????????????????? | | ????????????????????????#c #????????????????????? | | ????????????????????????# #????????????????????? | | ????????????????????????# #????????????????????? | | ????????????????????????# #????????????????????? | | ????????????????????????# #????????????????????? | | ????????????????????????# #????????????????????? | | ????????????????????????#c #????????????????????? | | ????????????????"?"###### ########?????????????? | | ??????????????"" """""" """""""#?""""????????? | | ?????????????"" "#"" ""#???????? | | ??????????? " ""#???????? | | ??????????? " " "#???????? | | ???????????? " """#???????? | | ???????????? "" % #"" ""????????? | | ?????????????"" " """" """""#"""""????????? | | ??????????????##"""########"""######?####????????? | | ???????????????" ????????"" "??????????????????? | | ????????????????????????#"" """?????????????????? | | ????????????????????????#"""""""?????????????????? | | ????????????????????????#"" """??????????????????? | | ?????????????????????????""""""??????????????????? | | ??????????????????????????##?????????????????????? | +----------------------------------------------------+ Best States ------------- Heat Dissipation 25 Energy Generation 14 Energy Capacity 250 Matter Stores 300 Matter Capacity 300 Sight Range 16 Terrain Scan Density 10 Evasion (%) 40 Recoil Reduction 2 Item Schematics ----------------- None Robot Schematics ------------------ None Fabricated ------------ Nothing Repaired ---------- Nothing Studied --------- None Alien Tech Used ----------------- None Achievements -------------- Analysis Probe Deductive Reasoning Junior Dev My Bad Challenges ------------ None Game ------ Seed EncryptedBlastFist Manual? 0 Play Time 00:37:06 Cumulative 27.4 hours Start 2026.03.27 @ 16:44:46 End 2026.03.27 @ 17:21:20 Sessions 1 Manual Loads 0 Difficulty Rogue Special Mode None Game No. 31 Rogue 31 Adventurer 0 Explorer 0 Win Type - Total 0 Types 0/0/0/0/0/0/0/0/0/0 Lore% 22 Gallery% 20 Achievement% 13 Wizard Run 0 Options --------- Layout 1 ASCII 0 Keyboard 1 Movement Vi Keybinds 0 Fullscreen 2 Font 24/Smallcaps Map View 50x35 Zoom Use 1% Tactical HUD 1 Map Filters NONE Filters NONE Steam 1 RUN: 33617287-4b77-416f-a985-153dc3775f16